[Event "Live Chess"]
[Site "Chess.com"]
[Date "2023.05.21"]
[Round "-"]
[White "Cimon"]
[Black "whitedjohn"]
[Result "0-1"]
[WhiteElo "1830"]
[BlackElo "1672"]
[TimeControl "300"]
[EndTime "2:27:06 PDT"]
[Termination "whitedjohn won on time"]

1. Nf3 {[%clk 0:04:57.4]} 1... Nf6 {[%clk 0:04:59.4]} 2. d4 {[%clk 0:04:55.9]}
2... c5 {[%clk 0:04:57.9]} 3. d5 {[%clk 0:04:54.5]} 3... d6 {[%clk 0:04:56]} 4.
c4 {[%clk 0:04:53.2]} 4... e6 {[%clk 0:04:50.9]} 5. Nc3 {[%clk 0:04:51.1]} 5...
exd5 {[%clk 0:04:50]} 6. cxd5 {[%clk 0:04:50]} 6... g6 {[%clk 0:04:48.9]} 7. e4
{[%clk 0:04:47.3]} 7... Bg7 {[%clk 0:04:47.7]} 8. Bd3 {[%clk 0:04:45.6]} 8...
Bg4 {[%clk 0:04:45.3]} 9. h3 {[%clk 0:04:18.7]} 9... Bxf3 {[%clk 0:04:43.7]} 10.
Qxf3 {[%clk 0:04:17.4]} 10... a6 {[%clk 0:04:38.6]} 11. a4 {[%clk 0:04:09.1]}
11... b6 {[%clk 0:04:37]} 12. O-O {[%clk 0:04:06.4]} 12... Nbd7 {[%clk
0:04:35.5]} 13. Qe2 {[%clk 0:04:02.7]} 13... Qc8 {[%clk 0:04:23.8]} 14. f4
{[%clk 0:03:59.7]} 14... O-O {[%clk 0:04:20.6]} 15. Bc2 {[%clk 0:03:37.9]} 15...
Re8 {[%clk 0:04:11.8]} 16. Bd2 {[%clk 0:03:32.9]} 16... c4 {[%clk 0:04:07.3]}
17. Kh2 {[%clk 0:03:22.9]} 17... Nc5 {[%clk 0:04:03.6]} 18. e5 {[%clk
0:03:03.4]} 18... Nd3 {[%clk 0:03:20.2]} 19. Bxd3 {[%clk 0:02:55.3]} 19... cxd3
{[%clk 0:03:18.9]} 20. Qxd3 {[%clk 0:02:26.6]} 20... dxe5 {[%clk 0:03:17.1]} 21.
Rae1 {[%clk 0:02:15.3]} 21... exf4 {[%clk 0:03:11.1]} 22. Bxf4 {[%clk
0:02:11.2]} 22... Nh5 {[%clk 0:02:50.5]} 23. Be3 {[%clk 0:01:26.2]} 23... Be5+
{[%clk 0:02:37.5]} 24. Kg1 {[%clk 0:01:24.8]} 24... Qc7 {[%clk 0:02:23.2]} 25.
Bf2 {[%clk 0:00:51]} 25... Ng3 {[%clk 0:02:13]} 26. Bxg3 {[%clk 0:00:48.1]}
26... Bxg3 {[%clk 0:02:11.8]} 27. Re3 {[%clk 0:00:40]} 27... Rxe3 {[%clk
0:01:22.8]} 28. Qxe3 {[%clk 0:00:35.4]} 28... Bd6 {[%clk 0:01:08.8]} 29. Kh1
{[%clk 0:00:33]} 29... Bc5 {[%clk 0:01:06.7]} 30. Qf3 {[%clk 0:00:27.9]} 30...
Rd8 {[%clk 0:00:58.5]} 31. Ne4 {[%clk 0:00:24.2]} 31... Bd4 {[%clk 0:00:51.8]}
32. Ng5 {[%clk 0:00:17.6]} 32... Rd7 {[%clk 0:00:45.1]} 33. b3 {[%clk
0:00:16.4]} 33... h6 {[%clk 0:00:41.1]} 34. Ne4 {[%clk 0:00:14.8]} 34... Bg7
{[%clk 0:00:38]} 35. Qd3 {[%clk 0:00:12.7]} 35... Qb7 {[%clk 0:00:28]} 36. Rd1
{[%clk 0:00:11.3]} 36... b5 {[%clk 0:00:25.7]} 37. axb5 {[%clk 0:00:10]} 37...
Qxb5 {[%clk 0:00:24.7]} 38. Qxb5 {[%clk 0:00:08.9]} 38... axb5 {[%clk
0:00:23.8]} 39. b4 {[%clk 0:00:07.7]} 39... f5 {[%clk 0:00:20.9]} 40. Nc5 {[%clk
0:00:06.8]} 40... Rd6 {[%clk 0:00:16.8]} 41. Ne6 {[%clk 0:00:05.9]} 41... Kf7
{[%clk 0:00:13.3]} 42. Nxg7 {[%clk 0:00:05.1]} 42... Kxg7 {[%clk 0:00:12]} 43.
Kg1 {[%clk 0:00:04.6]} 43... Kf6 {[%clk 0:00:11.1]} 44. Kf2 {[%clk 0:00:04.2]}
44... Ke5 {[%clk 0:00:10.3]} 45. Ke3 {[%clk 0:00:03.8]} 45... Rxd5 {[%clk
0:00:09.5]} 46. Rc1 {[%clk 0:00:03.1]} 46... Kd6 {[%clk 0:00:05.6]} 47. Re1
{[%clk 0:00:01.3]} 47... g5 {[%clk 0:00:04.4]} 48. Kf2 {[%clk 0:00:00.5]} 48...
f4 {[%clk 0:00:03]} 0-1

[Event "Live Chess"]
[Site "Chess.com"]
[Date "2023.05.21"]
[Round "-"]
[White "Singapourfeuj"]
[Black "raminguy"]
[Result "1-0"]
[WhiteElo "2192"]
[BlackElo "1959"]
[TimeControl "300"]
[EndTime "2:27:06 PDT"]
[Termination "Singapourfeuj won by resignation"]

1. d4 {[%clk 0:04:59.7]} 1... d5 {[%clk 0:04:57.9]} 2. c4 {[%clk 0:04:58.6]}
2... e6 {[%clk 0:04:55.8]} 3. Nf3 {[%clk 0:04:57.3]} 3... a6 {[%clk 0:04:54.7]}
4. cxd5 {[%clk 0:04:55.6]} 4... exd5 {[%clk 0:04:53.9]} 5. Nc3 {[%clk
0:04:54.5]} 5... c6 {[%clk 0:04:53.3]} 6. Bf4 {[%clk 0:04:51.2]} 6... Bd6 {[%clk
0:04:51.3]} 7. Bxd6 {[%clk 0:04:48.9]} 7... Qxd6 {[%clk 0:04:51.2]} 8. e3 {[%clk
0:04:48]} 8... Nf6 {[%clk 0:04:50.6]} 9. Bd3 {[%clk 0:04:47.1]} 9... O-O {[%clk
0:04:50]} 10. h3 {[%clk 0:04:46.2]} 10... Nbd7 {[%clk 0:04:47.5]} 11. O-O {[%clk
0:04:44]} 11... Re8 {[%clk 0:04:46.9]} 12. Qc2 {[%clk 0:04:41.7]} 12... Nf8
{[%clk 0:04:45.9]} 13. Ne5 {[%clk 0:04:39.9]} 13... c5 {[%clk 0:04:37.5]} 14. f4
{[%clk 0:04:38.7]} 14... cxd4 {[%clk 0:04:35.9]} 15. exd4 {[%clk 0:04:37.7]}
15... Qb6 {[%clk 0:04:35.4]} 16. Qf2 {[%clk 0:04:35.8]} 16... Ne6 {[%clk
0:04:24.2]} 17. Ne2 {[%clk 0:04:31.5]} 17... Qxb2 {[%clk 0:04:20]} 18. Rab1
{[%clk 0:04:29.9]} 18... Qxa2 {[%clk 0:04:18.4]} 19. f5 {[%clk 0:04:27.7]} 19...
Ng5 {[%clk 0:04:06.4]} 20. Nf4 {[%clk 0:04:25.4]} 20... Nge4 {[%clk 0:04:04.2]}
21. Qxa2 {[%clk 0:04:21.5]} 1-0

[Event "Live Chess"]
[Site "Chess.com"]
[Date "2023.05.21"]
[Round "-"]
[White "yeetpizza74"]
[Black "Rusty_Bridges"]
[Result "0-1"]
[WhiteElo "481"]
[BlackElo "1514"]
[TimeControl "300"]
[EndTime "2:27:31 PDT"]
[Termination "Rusty_Bridges won by checkmate"]

1. e4 {[%clk 0:04:58.7]} 1... d6 {[%clk 0:04:57]} 2. d4 {[%clk 0:04:56.9]} 2...
Nf6 {[%clk 0:04:55.5]} 3. Nc3 {[%clk 0:04:53.7]} 3... Nbd7 {[%clk 0:04:50.5]} 4.
Nf3 {[%clk 0:04:52.1]} 4... e5 {[%clk 0:04:45.7]} 5. dxe5 {[%clk 0:04:50]} 5...
dxe5 {[%clk 0:04:44.6]} 6. Bg5 {[%clk 0:04:46.5]} 6... Be7 {[%clk 0:04:42.8]} 7.
Bxf6 {[%clk 0:04:43.7]} 7... Bxf6 {[%clk 0:04:40.5]} 8. Nd5 {[%clk 0:04:42.4]}
8... c6 {[%clk 0:04:35.8]} 9. Nxf6+ {[%clk 0:04:39.8]} 9... Qxf6 {[%clk
0:04:32.1]} 10. Bc4 {[%clk 0:04:32.5]} 10... h6 {[%clk 0:04:26.3]} 11. O-O
{[%clk 0:04:30]} 11... O-O {[%clk 0:04:24]} 12. Qe2 {[%clk 0:04:13]} 12... Nc5
{[%clk 0:04:16]} 13. Rfd1 {[%clk 0:04:06.3]} 13... Bg4 {[%clk 0:04:12.8]} 14.
Bb3 {[%clk 0:03:50]} 14... Rfd8 {[%clk 0:04:00.8]} 15. Rxd8+ {[%clk 0:03:47.2]}
15... Rxd8 {[%clk 0:03:58.1]} 16. Rd1 {[%clk 0:03:45.5]} 16... Rxd1+ {[%clk
0:03:56]} 17. Qxd1 {[%clk 0:03:44]} 17... Nxe4 {[%clk 0:03:54.5]} 18. Qd7 {[%clk
0:03:27.6]} 18... Bxd7 {[%clk 0:03:51.9]} 19. c3 {[%clk 0:03:19.5]} 19... Qd6
{[%clk 0:03:45]} 20. Kh1 {[%clk 0:03:13.7]} 20... Nd2 {[%clk 0:03:43]} 21. Nxd2
{[%clk 0:03:08.9]} 21... Qxd2 {[%clk 0:03:42.9]} 22. Bd1 {[%clk 0:03:06.8]}
22... Qe1# {[%clk 0:03:41.5]} 0-1

[Event "Live Chess"]
[Site "Chess.com"]
[Date "2023.05.21"]
[Round "-"]
[White "smoggyrabbit"]
[Black "chessfiction"]
[Result "0-1"]
[WhiteElo "1701"]
[BlackElo "2334"]
[TimeControl "300"]
[EndTime "2:27:37 PDT"]
[Termination "chessfiction won on time"]

1. d4 {[%clk 0:04:58.5]} 1... d5 {[%clk 0:04:58.9]} 2. Nf3 {[%clk 0:04:57.5]}
2... e5 {[%clk 0:04:58.2]} 3. Nxe5 {[%clk 0:04:49.7]} 3... Nc6 {[%clk
0:04:57.4]} 4. Nxc6 {[%clk 0:04:48]} 4... bxc6 {[%clk 0:04:57.3]} 5. e3 {[%clk
0:04:45.7]} 5... Bd6 {[%clk 0:04:56.9]} 6. Bd3 {[%clk 0:04:41.8]} 6... Nf6
{[%clk 0:04:55.2]} 7. b3 {[%clk 0:04:40.4]} 7... O-O {[%clk 0:04:53.6]} 8. Bb2
{[%clk 0:04:38]} 8... Re8 {[%clk 0:04:52.1]} 9. h3 {[%clk 0:04:32.4]} 9... Ne4
{[%clk 0:04:39.1]} 10. Nd2 {[%clk 0:04:24.9]} 10... Nxf2 {[%clk 0:04:33.5]} 11.
Kxf2 {[%clk 0:04:15.9]} 11... Qh4+ {[%clk 0:04:32.5]} 12. Kf1 {[%clk 0:04:12.7]}
12... Rxe3 {[%clk 0:04:30.3]} 13. Nf3 {[%clk 0:04:09.3]} 13... Qg3 {[%clk
0:04:28.3]} 14. Bc1 {[%clk 0:03:29.9]} 14... Re7 {[%clk 0:04:23]} 15. Ng5 {[%clk
0:02:36.3]} 15... Bb4 {[%clk 0:03:48.9]} 16. Bd2 {[%clk 0:01:51.3]} 16... Bxd2
{[%clk 0:03:31.5]} 17. Qxd2 {[%clk 0:01:51.2]} 17... Re3 {[%clk 0:03:24.7]} 18.
Nxh7 {[%clk 0:01:04.5]} 18... f5 {[%clk 0:03:14.9]} 19. Qf2 {[%clk 0:00:51.8]}
19... Rxd3 {[%clk 0:03:09.3]} 20. cxd3 {[%clk 0:00:41.2]} 20... Qxd3+ {[%clk
0:03:08.1]} 21. Qe2 {[%clk 0:00:38.3]} 21... Ba6 {[%clk 0:03:06.1]} 22. Qxd3
{[%clk 0:00:35.1]} 22... Bxd3+ {[%clk 0:03:06]} 23. Kf2 {[%clk 0:00:33.9]} 23...
Kxh7 {[%clk 0:03:05.9]} 24. Rhe1 {[%clk 0:00:32.1]} 24... Be4 {[%clk 0:03:02.7]}
25. Rac1 {[%clk 0:00:29.7]} 25... a5 {[%clk 0:02:59.7]} 26. Rxc6 {[%clk
0:00:28.3]} 26... a4 {[%clk 0:02:58.8]} 27. Rxc7 {[%clk 0:00:24.8]} 27... axb3
{[%clk 0:02:57.9]} 28. axb3 {[%clk 0:00:23.9]} 28... Ra3 {[%clk 0:02:55.6]} 29.
Re3 {[%clk 0:00:18.9]} 29... Ra2+ {[%clk 0:02:53]} 30. Re2 {[%clk 0:00:18.2]}
30... Ra3 {[%clk 0:02:52.3]} 31. Re3 {[%clk 0:00:16.5]} 31... f4 {[%clk
0:02:51.3]} 32. Rec3 {[%clk 0:00:14.7]} 32... Ra2+ {[%clk 0:02:50.2]} 33. Ke1
{[%clk 0:00:13.4]} 33... Ra1+ {[%clk 0:02:47.8]} 34. Kd2 {[%clk 0:00:12.3]}
34... Ra2+ {[%clk 0:02:47.1]} 35. Kc1 {[%clk 0:00:11.3]} 35... Rxg2 {[%clk
0:02:44.5]} 36. Rf7 {[%clk 0:00:08]} 36... f3 {[%clk 0:02:43.2]} 37. Rcc7 {[%clk
0:00:06.9]} 37... f2 {[%clk 0:02:41.3]} 38. b4 {[%clk 0:00:05.5]} 38... Rg1+
{[%clk 0:02:40.2]} 39. Kd2 {[%clk 0:00:04.1]} 39... f1=Q {[%clk 0:02:38.4]} 40.
Rxg7+ {[%clk 0:00:03.2]} 40... Rxg7 {[%clk 0:02:36.3]} 41. Rxg7+ {[%clk
0:00:01.6]} 41... Kxg7 {[%clk 0:02:36.2]} 0-1

[Event "Live Chess"]
[Site "Chess.com"]
[Date "2023.05.21"]
[Round "-"]
[White "WilliamofOrange16th"]
[Black "LiamClery2020"]
[Result "1-0"]
[WhiteElo "1843"]
[BlackElo "2005"]
[TimeControl "300"]
[EndTime "2:27:37 PDT"]
[Termination "WilliamofOrange16th won by resignation"]

1. e4 {[%clk 0:04:55]} 1... Nf6 {[%clk 0:04:59.9]} 2. Nc3 {[%clk 0:04:53]} 2...
e5 {[%clk 0:04:58.4]} 3. Nf3 {[%clk 0:04:52]} 3... Nc6 {[%clk 0:04:57.3]} 4. Bb5
{[%clk 0:04:51.5]} 4... Bb4 {[%clk 0:04:55.8]} 5. Nd5 {[%clk 0:04:44.4]} 5...
Nxd5 {[%clk 0:04:46.7]} 6. exd5 {[%clk 0:04:42.9]} 6... Nd4 {[%clk 0:04:46.3]}
7. Nxd4 {[%clk 0:04:38.7]} 7... exd4 {[%clk 0:04:46.2]} 8. Qe2+ {[%clk
0:04:37.2]} 8... Qe7 {[%clk 0:04:44.5]} 9. O-O {[%clk 0:04:33.6]} 9... Qxe2
{[%clk 0:04:40.8]} 10. Bxe2 {[%clk 0:04:33.5]} 10... O-O {[%clk 0:04:39.7]} 11.
c3 {[%clk 0:04:32.1]} 11... dxc3 {[%clk 0:04:38.3]} 12. dxc3 {[%clk 0:04:31.4]}
12... Bc5 {[%clk 0:04:36.3]} 13. b4 {[%clk 0:04:26.7]} 13... Bd6 {[%clk
0:04:34.2]} 14. Be3 {[%clk 0:04:19.6]} 14... b6 {[%clk 0:04:31.7]} 15. a3 {[%clk
0:04:18]} 15... Bb7 {[%clk 0:04:29.8]} 16. c4 {[%clk 0:04:17.2]} 16... Rfe8
{[%clk 0:04:25.9]} 17. Bf3 {[%clk 0:04:14.1]} 17... a5 {[%clk 0:04:18.3]} 18. c5
{[%clk 0:04:07.4]} 18... Be5 {[%clk 0:04:15.8]} 19. Rab1 {[%clk 0:04:03.5]}
19... axb4 {[%clk 0:04:12.2]} 20. axb4 {[%clk 0:04:01.5]} 20... Ba6 {[%clk
0:04:10.5]} 21. Rfc1 {[%clk 0:03:52.2]} 21... Bd3 {[%clk 0:04:06.2]} 22. Rb3
{[%clk 0:03:49.1]} 22... Bg6 {[%clk 0:04:03.4]} 23. cxb6 {[%clk 0:03:43.1]}
23... cxb6 {[%clk 0:04:00.6]} 24. Bxb6 {[%clk 0:03:42.1]} 24... Rac8 {[%clk
0:03:55.9]} 25. Rxc8 {[%clk 0:03:36.3]} 25... Rxc8 {[%clk 0:03:54.3]} 26. g3
{[%clk 0:03:35.4]} 26... Bc2 {[%clk 0:03:45.2]} 27. Re3 {[%clk 0:03:31.1]} 27...
Bf6 {[%clk 0:03:43.6]} 28. h4 {[%clk 0:03:10.9]} 28... h6 {[%clk 0:03:33.8]} 29.
Bc5 {[%clk 0:03:03.3]} 29... Kh7 {[%clk 0:03:21]} 30. Bg4 {[%clk 0:03:02.2]}
30... Rd8 {[%clk 0:03:16.3]} 31. b5 {[%clk 0:02:55.8]} 31... g5 {[%clk 0:03:08]}
32. hxg5 {[%clk 0:02:48.1]} 32... Bxg5 {[%clk 0:03:04.7]} 33. Rc3 {[%clk
0:02:47.4]} 33... Ba4 {[%clk 0:03:01.2]} 34. Bf5+ {[%clk 0:02:43.2]} 34... Kg7
{[%clk 0:02:58.4]} 35. b6 {[%clk 0:02:39]} 35... d6 {[%clk 0:02:57]} 36. Bd4+
{[%clk 0:02:37.7]} 36... Bf6 {[%clk 0:02:54.8]} 37. Bxf6+ {[%clk 0:02:31.4]}
37... Kxf6 {[%clk 0:02:54.7]} 38. Rc8 {[%clk 0:02:28.7]} 38... Ke7 {[%clk
0:02:47]} 39. b7 {[%clk 0:02:25.6]} 1-0

[Event "Live Chess"]
[Site "Chess.com"]
[Date "2023.05.21"]
[Round "-"]
[White "AttackingSnowLeopard"]
[Black "Leonid_Starozhilov"]
[Result "0-1"]
[WhiteElo "2200"]
[BlackElo "2633"]
[TimeControl "300"]
[EndTime "2:27:50 PDT"]
[Termination "Leonid_Starozhilov won by resignation"]

1. d4 {[%clk 0:04:58.7]} 1... g6 {[%clk 0:04:58.7]} 2. c4 {[%clk 0:04:58]} 2...
Bg7 {[%clk 0:04:58.3]} 3. Nc3 {[%clk 0:04:56.7]} 3... d6 {[%clk 0:04:57.4]} 4.
e4 {[%clk 0:04:55.9]} 4... Nc6 {[%clk 0:04:54.9]} 5. Nf3 {[%clk 0:04:54.2]} 5...
Bg4 {[%clk 0:04:53.4]} 6. Be3 {[%clk 0:04:51.8]} 6... e5 {[%clk 0:04:51.5]} 7.
dxe5 {[%clk 0:04:49.3]} 7... Bxf3 {[%clk 0:04:45.6]} 8. Qxf3 {[%clk 0:04:46.4]}
8... dxe5 {[%clk 0:04:38.2]} 9. Nd5 {[%clk 0:04:43.2]} 9... Nd4 {[%clk
0:04:35.3]} 10. Bxd4 {[%clk 0:04:36.3]} 10... exd4 {[%clk 0:04:34.3]} 11. Bd3
{[%clk 0:04:35]} 11... c6 {[%clk 0:04:28.2]} 12. Nf4 {[%clk 0:04:29.7]} 12...
Qa5+ {[%clk 0:04:24.9]} 13. Ke2 {[%clk 0:04:24]} 13... Nf6 {[%clk 0:04:21.6]}
14. Rhe1 {[%clk 0:04:22.2]} 14... O-O {[%clk 0:04:18]} 15. Kf1 {[%clk
0:04:21.5]} 15... Rfe8 {[%clk 0:04:15.6]} 16. Kg1 {[%clk 0:04:20.9]} 16... Re5
{[%clk 0:04:11.6]} 17. a3 {[%clk 0:04:03.4]} 17... Rae8 {[%clk 0:04:08.9]} 18.
b4 {[%clk 0:04:02.2]} 18... Qc7 {[%clk 0:04:08]} 19. Rad1 {[%clk 0:03:49]} 19...
h5 {[%clk 0:03:51.1]} 20. h3 {[%clk 0:03:37.9]} 20... b6 {[%clk 0:03:45.1]} 21.
c5 {[%clk 0:03:10.1]} 21... bxc5 {[%clk 0:03:38.8]} 22. Bc4 {[%clk 0:03:08.9]}
22... Kh7 {[%clk 0:03:32.3]} 23. Nd3 {[%clk 0:03:02.5]} 23... Rxe4 {[%clk
0:03:28.8]} 24. Rxe4 {[%clk 0:02:59.9]} 24... Nxe4 {[%clk 0:03:17.9]} 25. Qxf7
{[%clk 0:02:48.9]} 25... Qxf7 {[%clk 0:03:14.2]} 26. Bxf7 {[%clk 0:02:48.4]}
26... Re7 {[%clk 0:03:12.4]} 27. Bc4 {[%clk 0:02:45.1]} 27... Nc3 {[%clk
0:03:07.8]} 28. Ra1 {[%clk 0:02:31.8]} 28... Re2 {[%clk 0:02:51]} 29. bxc5
{[%clk 0:02:26.7]} 29... Rc2 {[%clk 0:02:48.6]} 30. Kf1 {[%clk 0:02:18.4]} 30...
Ne4 {[%clk 0:02:43]} 31. Ba6 {[%clk 0:02:12.5]} 31... Nxc5 {[%clk 0:02:37.3]}
32. Nxc5 {[%clk 0:02:05.7]} 32... Rxc5 {[%clk 0:02:35.6]} 33. Bd3 {[%clk
0:01:58.3]} 33... Rc3 {[%clk 0:02:33.3]} 34. Ke2 {[%clk 0:01:57.1]} 34... c5
{[%clk 0:02:32.1]} 35. Rb1 {[%clk 0:01:53.2]} 35... c4 {[%clk 0:02:31.4]} 36.
Be4 {[%clk 0:01:50.5]} 36... d3+ {[%clk 0:02:29.6]} 37. Kd1 {[%clk 0:01:50]}
37... Rxa3 {[%clk 0:02:26.5]} 38. Rb4 {[%clk 0:01:46.5]} 38... Ra1+ {[%clk
0:02:21.2]} 39. Kd2 {[%clk 0:01:45.2]} 39... Bh6+ {[%clk 0:02:20.6]} 40. Kc3
{[%clk 0:01:44]} 40... d2 {[%clk 0:02:15]} 41. Rb7+ {[%clk 0:01:35.7]} 41... Kg8
{[%clk 0:02:10.3]} 42. Bd5+ {[%clk 0:01:16.1]} 42... Kf8 {[%clk 0:02:07.9]} 0-1

[Event "Live Chess"]
[Site "Chess.com"]
[Date "2023.05.21"]
[Round "-"]
[White "FailsGambits"]
[Black "Ferrarifan27"]
[Result "0-1"]
[WhiteElo "1338"]
[BlackElo "2099"]
[TimeControl "300"]
[EndTime "2:28:05 PDT"]
[Termination "Ferrarifan27 won by resignation"]

1. e4 {[%clk 0:04:59.8]} 1... e5 {[%clk 0:04:58.3]} 2. Nf3 {[%clk 0:04:59.3]}
2... Nc6 {[%clk 0:04:56.9]} 3. d4 {[%clk 0:04:58.8]} 3... exd4 {[%clk
0:04:53.6]} 4. Nxd4 {[%clk 0:04:58.7]} 4... Qh4 {[%clk 0:04:52.2]} 5. Nc3 {[%clk
0:04:56.8]} 5... Bb4 {[%clk 0:04:49.6]} 6. Ne2 {[%clk 0:04:34.7]} 6... Qxe4
{[%clk 0:04:45.1]} 7. Bd2 {[%clk 0:04:25.9]} 7... Qe7 {[%clk 0:04:41.6]} 8. a3
{[%clk 0:04:23.4]} 8... Bxc3 {[%clk 0:04:40.1]} 9. Bxc3 {[%clk 0:04:23.3]} 9...
Nf6 {[%clk 0:04:38.9]} 10. Qd3 {[%clk 0:04:19.6]} 10... O-O {[%clk 0:04:37]} 11.
O-O-O {[%clk 0:04:19.1]} 11... d5 {[%clk 0:04:35.6]} 12. Bxf6 {[%clk 0:04:15]}
12... Qxf6 {[%clk 0:04:33.8]} 13. Qxd5 {[%clk 0:04:14.1]} 13... Qxf2 {[%clk
0:04:31.9]} 14. Nd4 {[%clk 0:04:03.6]} 14... Nxd4 {[%clk 0:04:30]} 15. Qxd4
{[%clk 0:04:03]} 15... Qxd4 {[%clk 0:04:28.2]} 16. Rxd4 {[%clk 0:04:02.9]} 16...
Be6 {[%clk 0:04:27.2]} 17. Bc4 {[%clk 0:03:57.1]} 17... Bxc4 {[%clk 0:04:25.9]}
18. Rxc4 {[%clk 0:03:57]} 18... c6 {[%clk 0:04:25.3]} 19. Rd1 {[%clk 0:03:55.8]}
19... Rad8 {[%clk 0:04:23.3]} 20. Rcd4 {[%clk 0:03:50.9]} 20... Rxd4 {[%clk
0:04:21.9]} 21. Rxd4 {[%clk 0:03:50.8]} 21... Rb8 {[%clk 0:04:20.2]} 22. Rd7
{[%clk 0:03:48.5]} 22... Kf8 {[%clk 0:04:19.4]} 23. Kd2 {[%clk 0:03:47.6]} 23...
Ke8 {[%clk 0:04:18.3]} 24. Rc7 {[%clk 0:03:42.8]} 24... Rd8+ {[%clk 0:04:17.2]}
25. Kc3 {[%clk 0:03:41.2]} 25... Rd7 {[%clk 0:04:16.5]} 26. Rc8+ {[%clk
0:03:35.7]} 26... Ke7 {[%clk 0:04:15]} 27. Rh8 {[%clk 0:03:32.9]} 27... h6
{[%clk 0:04:13.9]} 28. Rh7 {[%clk 0:03:32.1]} 28... Kf6 {[%clk 0:04:11.9]} 29.
Kc4 {[%clk 0:03:21.3]} 29... Rd8 {[%clk 0:04:10.5]} 30. g4 {[%clk 0:03:16.2]}
30... Kg6 {[%clk 0:04:09.5]} 0-1

[Event "Live Chess"]
[Site "Chess.com"]
[Date "2023.05.21"]
[Round "-"]
[White "Brooms1989"]
[Black "Crowded_House"]
[Result "0-1"]
[WhiteElo "1108"]
[BlackElo "1656"]
[TimeControl "300"]
[EndTime "2:28:11 PDT"]
[Termination "Crowded_House won by resignation"]

1. e4 {[%clk 0:04:55.6]} 1... e6 {[%clk 0:04:58.9]} 2. d4 {[%clk 0:04:54.1]}
2... d5 {[%clk 0:04:58.5]} 3. Nc3 {[%clk 0:04:52.7]} 3... Bb4 {[%clk 0:04:56.2]}
4. e5 {[%clk 0:04:48.4]} 4... c5 {[%clk 0:04:53.8]} 5. a4 {[%clk 0:04:47]} 5...
Nc6 {[%clk 0:04:49.8]} 6. Nf3 {[%clk 0:04:41.9]} 6... Nge7 {[%clk 0:04:38.1]} 7.
Bb5 {[%clk 0:04:33.6]} 7... a6 {[%clk 0:04:28]} 8. Bxc6+ {[%clk 0:04:29.7]} 8...
Nxc6 {[%clk 0:04:26.7]} 9. O-O {[%clk 0:04:27.4]} 9... O-O {[%clk 0:04:15.7]}
10. Bg5 {[%clk 0:04:18.4]} 10... Qd7 {[%clk 0:04:00.7]} 11. Ne2 {[%clk
0:03:44.5]} 11... cxd4 {[%clk 0:03:52.1]} 12. Nfxd4 {[%clk 0:03:40.1]} 12...
Nxd4 {[%clk 0:03:45.8]} 13. Qxd4 {[%clk 0:03:40]} 13... Be7 {[%clk 0:03:44.9]}
14. Bxe7 {[%clk 0:03:32.2]} 14... Qxe7 {[%clk 0:03:43.2]} 15. Qg4 {[%clk
0:03:30.6]} 15... Bd7 {[%clk 0:03:36.2]} 16. b3 {[%clk 0:03:28.2]} 16... Rac8
{[%clk 0:03:33.9]} 17. Nd4 {[%clk 0:03:23.2]} 17... Rc3 {[%clk 0:03:21.2]} 18.
Rad1 {[%clk 0:03:06.7]} 18... h6 {[%clk 0:03:17.5]} 19. f4 {[%clk 0:03:00.9]}
19... g6 {[%clk 0:03:02.5]} 20. Rf3 {[%clk 0:02:52.6]} 20... h5 {[%clk
0:03:01.4]} 21. Qh3 {[%clk 0:02:18.6]} 21... Rxf3 {[%clk 0:02:59]} 22. Nxf3
{[%clk 0:02:17.7]} 22... Rc8 {[%clk 0:02:44.1]} 23. Nd4 {[%clk 0:02:14.7]} 23...
b5 {[%clk 0:02:33.6]} 24. Rd3 {[%clk 0:02:08.5]} 24... bxa4 {[%clk 0:02:20.5]}
25. bxa4 {[%clk 0:02:08.4]} 25... Qb4 {[%clk 0:02:11.4]} 26. Qe3 {[%clk
0:01:38.4]} 26... Qxa4 {[%clk 0:01:45.2]} 27. Ra3 {[%clk 0:01:24.4]} 27... Qc4
{[%clk 0:01:39.5]} 28. h3 {[%clk 0:01:04.4]} 28... Rb8 {[%clk 0:01:38.4]} 29.
Rb3 {[%clk 0:00:54.7]} 29... Rxb3 {[%clk 0:01:35.2]} 30. Qxb3 {[%clk 0:00:51.3]}
30... Qxb3 {[%clk 0:01:34.4]} 31. Nxb3 {[%clk 0:00:51.2]} 31... Bb5 {[%clk
0:01:31.9]} 32. Kf2 {[%clk 0:00:47.5]} 32... Kf8 {[%clk 0:01:29.2]} 33. Ke3
{[%clk 0:00:46.3]} 33... Ke7 {[%clk 0:01:28.2]} 34. Kd4 {[%clk 0:00:45.4]} 34...
Bf1 {[%clk 0:01:22.2]} 35. g3 {[%clk 0:00:41.8]} 35... Bxh3 {[%clk 0:01:20.6]}
36. Kc5 {[%clk 0:00:37.8]} 36... Bf1 {[%clk 0:01:12.4]} 37. Kb6 {[%clk
0:00:32.4]} 37... Bc4 {[%clk 0:01:06.2]} 38. Nc5 {[%clk 0:00:27.5]} 38... f6
{[%clk 0:01:00.9]} 39. Nxa6 {[%clk 0:00:19.1]} 39... g5 {[%clk 0:00:49.3]} 40.
fxg5 {[%clk 0:00:16.3]} 40... fxg5 {[%clk 0:00:48.2]} 41. Nb4 {[%clk 0:00:14.2]}
41... h4 {[%clk 0:00:47]} 42. gxh4 {[%clk 0:00:12.2]} 42... gxh4 {[%clk
0:00:46]} 43. Nc6+ {[%clk 0:00:09.3]} 43... Kf7 {[%clk 0:00:42.5]} 44. Nd8+
{[%clk 0:00:08.2]} 44... Ke7 {[%clk 0:00:39.2]} 45. Nc6+ {[%clk 0:00:07.3]}
45... Kd7 {[%clk 0:00:38]} 46. Nd4 {[%clk 0:00:05.2]} 46... h3 {[%clk
0:00:35.9]} 47. Nf3 {[%clk 0:00:04.7]} 47... Be2 {[%clk 0:00:33.5]} 48. Kc5
{[%clk 0:00:03.8]} 48... Bxf3 {[%clk 0:00:32.7]} 0-1